fUSD/lending_fUSD_20250324
["ID","MTS","AMOUNT","RATE_DAILY","PERIOD"]
[356625046,1742845877042,-500.0,0.00047945,120]
[356625047,1742845877053,-656.99,0.00047945,7]
[356625048,1742845877063,-500.0,0.00047945,120]
[356625049,1742845877074,-527.42,0.00047945,120]
[356625050,1742845877084,-445.95010261,0.00047945,120]
[356625051,1742845877093,-500.0,0.00047945,100]
[356625052,1742845877103,-500.0,0.00047945,120]
[356625053,1742845877113,-500.0,0.00047945,120]
[356625054,1742845877125,-500.0,0.00047945,120]
[356625055,1742845877135,-1015.23,0.00047945,120]
[356625056,1742845877145,-232.96735202,0.00047945,120]
[356625057,1742845877154,-500.0,0.00047945,120]
[356625058,1742845877164,-500.0,0.00047945,120]
[356625059,1742845877173,-500.0,0.00047945,120]
[356625060,1742845877182,-4628.36,0.00047945,120]
[356625061,1742845877192,-619.4885671,0.00047945,120]
[356625062,1742845877201,-500.0,0.00047945,120]
[356625063,1742845877211,-500.0,0.00047945,120]
[356625064,1742845877220,-500.0,0.00047945,120]
[356625065,1742845877230,-500.0,0.00047945,120]
[356625066,1742845877239,-500.0,0.00047945,120]
[356625067,1742845877248,-500.0,0.00047945,120]
[356625068,1742845877258,-500.0,0.00047945,120]
[356625069,1742845877267,-500.0,0.00047945,120]
[356625070,1742845877276,-324.20862478,0.00047945,120]
[356625071,1742845877286,-500.0,0.00047945,120]
[356625072,1742845877295,-292.71907611,0.00047945,120]
[356625073,1742845877305,-506.07714763,0.00047945,120]
[356625074,1742845877314,-500.0,0.00047945,120]
[356625075,1742845877324,-500.0,0.00047945,120]
[356625076,1742845877334,-500.0,0.00047945,120]
[356625077,1742845877343,-657.12,0.00047945,120]
[356625078,1742845877353,-574.90668412,0.00047945,120]
[356625079,1742845877363,-500.0,0.00047945,120]
[356625080,1742845877372,-500.0,0.00047945,120]
[356625081,1742845877381,-500.0,0.00047945,120]
[356625082,1742845877390,-500.0,0.00047945,120]
[356625083,1742845877400,-500.0,0.00047945,120]
[356625084,1742845877410,-500.0,0.00047945,120]
[356625085,1742845877516,-500.22,0.00047945,120]
[356625086,1742845877528,-500.0,0.00047945,120]
[356625087,1742845877537,-500.0,0.00047945,120]
[356625088,1742845877553,-335.35898293,0.00047945,120]
[356625089,1742845877563,-500.0,0.00047945,120]
[356625090,1742845877572,-258.41944731,0.00047945,120]
[356625091,1742845877581,-500.0,0.00047945,120]
[356625092,1742845877593,-500.0,0.00047945,120]
[356625093,1742845877602,-500.0,0.00047945,120]
[356625094,1742845877611,-500.0,0.00047945,120]
[356625095,1742845877622,-500.0,0.00047945,120]
[356625096,1742845877632,-500.0,0.00047945,120]
[356625097,1742845877642,-500.0,0.00047945,120]
[356625098,1742845877651,-500.0,0.00047945,120]
[356625099,1742845877661,-500.0,0.00047945,120]
[356625100,1742845877671,-564.33339306,0.00047945,120]
[356625101,1742845877679,-400.45825078,0.00047945,120]
[356625102,1742845877688,-332.74365727,0.00047945,120]
[356625103,1742845877697,-1853.82,0.00047945,120]
[356625104,1742845877707,-593.43005747,0.00047945,120]
[356625105,1742845877717,-1056.54,0.00047945,120]
[356625106,1742845877726,-500.0,0.00047945,120]
[356625107,1742845877735,-500.0,0.00047945,120]
[356625108,1742845877744,-500.0,0.00047945,120]
[356625109,1742845877754,-500.0,0.00047945,2]
[356625110,1742845877763,-500.0,0.00047945,120]
[356625111,1742845877772,-500.0,0.00047945,120]
[356625112,1742845877781,-229.8262424,0.00047945,120]
[356625113,1742845877791,-364.79889827,0.00047945,120]
[356625114,1742845877800,-7241.82,0.00047945,2]
[356625115,1742845877810,-150.0,0.00048138,7]
[356625116,1742845877819,-150.0,0.00048166,7]
[356625117,1742845877830,-782.66,0.00048219,2]
[356625118,1742845877840,-830.17,0.00048219,7]
[356625119,1742845877850,-500.0,0.00048219,120]
[356625120,1742845877859,-465.1243496,0.00048219,120]
[356625121,1742845877869,-500.0,0.00048219,120]
[356625122,1742845877878,-513.93545073,0.00048219,120]
[356625123,1742845877887,-611.59,0.00048219,120]
[356625124,1742845877896,-500.0,0.00048219,120]
[356625125,1742845877905,-261.67945252,0.00048219,120]
[356625126,1742845877915,-2989.75,0.00048219,120]
[356625127,1742845877924,-500.0,0.00048219,120]
[356625128,1742845877934,-500.0,0.00048219,120]
[356625129,1742845877944,-500.0,0.00048219,120]
[356625130,1742845877954,-500.0,0.00048219,120]
[356625131,1742845877965,-913.92,0.00048219,120]
[356625132,1742845877975,-319.29709496,0.00048219,120]
[356625133,1742845877984,-656.99,0.00048219,7]
[356625134,1742845877993,-319.1774364,0.00048219,120]
[356625135,1742845878002,-527.42,0.00048219,120]
[356625136,1742845878012,-500.0,0.00048219,100]
[356625137,1742845878022,-500.0,0.00048219,120]
[356625138,1742845878032,-450.0308026,0.00048219,120]
[356625139,1742845878042,-500.0,0.00048219,120]
[356625140,1742845878053,-1015.23,0.00048219,120]
[356625141,1742845878063,-500.0,0.00048219,120]
[356625142,1742845878073,-500.0,0.00048219,120]
[356625143,1742845878083,-500.0,0.00048219,120]
[356625144,1742845878092,-4628.36,0.00048219,120]
[356625145,1742845878102,-240.11,0.00048219,120]
[356625146,1742845878112,-440.18141723,0.00048219,120]
[356625147,1742845878121,-594.56490093,0.00048219,120]
[356625148,1742845878131,-500.0,0.00048219,120]
[356625149,1742845878142,-500.0,0.00048219,120]
[356625150,1742845878152,-509.82915985,0.00048219,120]
[356625151,1742845878162,-500.0,0.00048219,120]
[356625152,1742845878173,-500.0,0.00048219,120]
[356625153,1742845878183,-500.0,0.00048219,120]
[356625154,1742845878192,-500.0,0.00048219,120]
[356625155,1742845878202,-500.0,0.00048219,120]
[356625156,1742845878212,-500.0,0.00048219,120]
[356625157,1742845878222,-657.12,0.00048219,120]
[356625158,1742845878231,-208.5329075,0.00048219,120]
[356625159,1742845878241,-613.71375064,0.00048219,120]
[356625160,1742845878250,-431.56670452,0.00048219,120]
[356625161,1742845878259,-500.0,0.00048219,120]
[356625162,1742845878269,-500.0,0.00048219,120]
[356625163,1742845878279,-500.0,0.00048219,120]
[356625164,1742845878288,-500.22,0.00048219,120]
[356625165,1742845878298,-290.09432999,0.00048219,120]
[356625166,1742845878308,-500.0,0.00048219,120]
[356625167,1742845878317,-500.0,0.00048219,120]
[356625168,1742845878326,-500.0,0.00048219,120]
[356625169,1742845878336,-500.0,0.00048219,120]
[356625170,1742845878347,-500.0,0.00048219,120]
[356625171,1742845878356,-500.0,0.00048219,120]
[356625172,1742845878365,-500.0,0.00048219,120]
[356625173,1742845878375,-529.87258711,0.00048219,120]
[356625174,1742845878384,-500.0,0.00048219,120]
[356625175,1742845878394,-500.0,0.00048219,120]
[356625176,1742845878403,-253.57350816,0.00048219,120]
[356625177,1742845878413,-1853.82,0.00048219,120]
[356625178,1742845878422,-1056.54,0.00048219,120]
[356625179,1742845878431,-500.0,0.00048219,120]
[356625180,1742845878440,-500.0,0.00048219,120]
[356625181,1742845878450,-500.0,0.00048219,120]
[356625182,1742845878459,-604.10068758,0.00048219,2]
[356625183,1742845878477,-500.0,0.00048219,120]
[356625184,1742845878488,-550.79984004,0.00048219,120]
[356625185,1742845878498,-7241.82,0.00048219,2]
[356625186,1742845878508,-150.0,0.00048358,7]
[356625187,1742845878517,-150.0,0.00048406,7]
[356625188,1742845878527,-150.0,0.00048452,7]
[356625189,1742845878537,-150.0,0.00048488,7]
[356625190,1742845878552,-782.66,0.00048493,2]
[356625191,1742845878562,-830.17,0.00048493,7]
[356625192,1742845878572,-500.0,0.00048493,120]
[356625193,1742845878582,-500.0,0.00048493,120]
[356625194,1742845878593,-611.59,0.00048493,120]
[356625195,1742845878603,-182.60235051,0.00048493,120]
[356625196,1742845878612,-2989.75,0.00048493,120]
[356625197,1742845878622,-373.99604647,0.00048493,120]
[356625198,1742845878632,-500.0,0.00048493,120]
[356625199,1742845878644,-290.12677251,0.00048493,120]
[356625200,1742845878654,-500.0,0.00048493,120]
[356625201,1742845878664,-913.92,0.00048493,120]
[356625202,1742845878674,-656.99,0.00048493,7]
[356625203,1742845878684,-527.42,0.00048493,120]
[356625204,1742845878693,-500.0,0.00048493,100]
[356625205,1742845878703,-500.0,0.00048493,120]
[356625206,1742845878712,-500.0,0.00048493,120]
[356625207,1742845878722,-1015.23,0.00048493,120]
[356625208,1742845878733,-500.0,0.00048493,120]
[356625209,1742845878742,-500.0,0.00048493,120]
[356625210,1742845878752,-500.0,0.00048493,120]
[356625211,1742845878762,-4628.36,0.00048493,120]
[356625212,1742845878771,-500.0,0.00048493,120]
[356625213,1742845878781,-500.0,0.00048493,120]
[356625214,1742845878791,-500.0,0.00048493,120]
[356625215,1742845878801,-500.0,0.00048493,120]
[356625216,1742845878811,-500.0,0.00048493,120]
[356625217,1742845878820,-500.0,0.00048493,120]
[356625218,1742845878830,-500.0,0.00048493,120]
[356625219,1742845878839,-197.85497718,0.00048493,120]
[356625220,1742845878849,-657.12,0.00048493,120]
[356625221,1742845878858,-456.68140852,0.00048493,120]
[356625222,1742845878868,-500.0,0.00048493,120]
[356625223,1742845878877,-500.0,0.00048493,120]
[356625224,1742845878887,-500.22,0.00048493,120]
[356625225,1742845878896,-500.0,0.00048493,120]
[356625226,1742845878906,-500.0,0.00048493,120]
[356625227,1742845878915,-500.0,0.00048493,120]
[356625228,1742845878925,-500.0,0.00048493,120]
[356625229,1742845878934,-500.0,0.00048493,120]
[356625230,1742845878944,-500.0,0.00048493,120]
[356625231,1742845878954,-500.0,0.00048493,120]
[356625232,1742845878964,-500.0,0.00048493,120]
[356625233,1742845878975,-500.0,0.00048493,120]
[356625234,1742845878984,-1853.82,0.00048493,120]
[356625235,1742845878994,-1056.54,0.00048493,120]
[356625236,1742845879003,-500.0,0.00048493,120]
[356625237,1742845879013,-500.0,0.00048493,120]
[356625238,1742845879022,-286.97931318,0.00048493,120]
[356625239,1742845879031,-500.0,0.00048493,120]
[356625240,1742845879040,-7241.82,0.00048493,2]
[356625241,1742845879050,-150.0,0.00048499,7]
[356625242,1742845879059,-150.0,0.00048605,7]
[356625243,1742845879068,-21227.33,0.00048609,7]
[356625244,1742845879077,-5034.57013,0.00048657,30]
[356625245,1742845879086,-150.0,0.00048698,7]
[356625246,1742845879095,-150.0,0.00048727,7]
[356625247,1742845879104,-782.66,0.00048767,2]
[356625248,1742845879115,-830.17,0.00048767,7]
[356625249,1742845879124,-223.40217485,0.00048767,120]
[356625250,1742845879134,-151.0,0.00048767,14]
[356625251,1742845879144,-500.0,0.00048767,120]
[356625252,1742845879154,-151.0,0.00048767,14]
[356625253,1742845879165,-151.0,0.00048767,14]
[356625254,1742845879175,-155.376603,0.00048767,14]
[356625255,1742845879184,-611.59,0.00048767,120]
[356625256,1742845879194,-2989.75,0.00048767,120]
[356625257,1742845879204,-253.10651723,0.00048767,120]
[356625258,1742845879214,-200.50281975,0.00048767,120]
[356625259,1742845879224,-913.92,0.00048767,120]
[356625260,1742845879234,-656.99,0.00048767,7]
[356625261,1742845879243,-527.42,0.00048767,120]
[356625262,1742845879254,-500.0,0.00048767,100]
[356625263,1742845879264,-500.0,0.00048767,120]
[356625264,1742845879274,-500.0,0.00048767,120]
[356625265,1742845879284,-1015.23,0.00048767,120]
[356625266,1742845879293,-500.0,0.00048767,120]
[356625267,1742845879303,-500.0,0.00048767,120]
[356625268,1742845879312,-500.0,0.00048767,120]
[356625269,1742845879322,-4628.36,0.00048767,120]
[356625270,1742845879332,-500.0,0.00048767,120]
[356625271,1742845879342,-500.0,0.00048767,120]
[356625272,1742845879351,-500.0,0.00048767,120]
[356625273,1742845879361,-500.0,0.00048767,120]
[356625274,1742845879371,-500.0,0.00048767,120]
[356625275,1742845879381,-500.0,0.00048767,120]
[356625276,1742845879390,-500.0,0.00048767,120]
[356625277,1742845879400,-657.12,0.00048767,120]
[356625278,1742845879409,-500.0,0.00048767,120]
[356625279,1742845879419,-500.0,0.00048767,120]
[356625280,1742845879428,-500.22,0.00048767,120]
[356625281,1742845879438,-500.0,0.00048767,120]
[356625282,1742845879447,-500.0,0.00048767,120]
[356625283,1742845879457,-500.0,0.00048767,120]
[356625284,1742845879467,-500.0,0.00048767,120]
[356625285,1742845879602,-500.0,0.00048767,120]
[356625286,1742845879613,-500.0,0.00048767,120]
[356625287,1742845879623,-251.02495922,0.00048767,120]
[356625288,1742845879633,-461.27911466,0.00048767,120]
[356625289,1742845879643,-500.0,0.00048767,120]
[356625290,1742845879652,-1853.82,0.00048767,120]
[356625291,1742845879661,-1056.54,0.00048767,120]
[356625292,1742845879671,-500.0,0.00048767,120]
[356625293,1742845879680,-500.0,0.00048767,120]
[356625294,1742845879689,-500.0,0.00048767,120]
[356625295,1742845879699,-7241.82,0.00048767,2]
[356625296,1742845879709,-1000.0,0.00048788,14]
[356625297,1742845879718,-150.0,0.00048807,7]
[356625298,1742845879728,-150.0,0.00048909,7]
[356625299,1742845879737,-150.0,0.00048947,7]
[356625300,1742845879747,-1000.0,0.00049,7]
[356625301,1742845879756,-1042.08408921,0.00049,30]
[356625302,1742845879765,-3098.86,0.00049,120]
[356625303,1742845879775,-150.0,0.00049011,7]
[356625304,1742845879784,-1000.0,0.00049011,14]
[356625305,1742845879793,-782.66,0.00049041,2]
[356625306,1742845879802,-830.17,0.00049041,7]
[356625307,1742845879812,-500.0,0.00049041,120]
[356625308,1742845879821,-611.59,0.00049041,120]
[356625309,1742845879831,-2989.75,0.00049041,120]
[356625310,1742845879840,-913.92,0.00049041,120]
[356625311,1742845879850,-656.99,0.00049041,7]
[356625312,1742845879860,-527.42,0.00049041,120]
[356625313,1742845879869,-500.0,0.00049041,100]
[356625314,1742845879879,-500.0,0.00049041,120]
[356625315,1742845879888,-500.0,0.00049041,120]
[356625316,1742845879898,-1015.23,0.00049041,120]
[356625317,1742845879908,-500.0,0.00049041,120]
[356625318,1742845879918,-286.22114853,0.00049041,120]
[356625319,1742845879927,-511.60716731,0.00049041,120]
[356625320,1742845879937,-4628.36,0.00049041,120]
[356625321,1742845879946,-258.7654177,0.00049041,120]
[356625322,1742845879955,-500.0,0.00049041,120]
[356625323,1742845879966,-500.0,0.00049041,120]
[356625324,1742845879976,-417.67015819,0.00049041,120]
[356625325,1742845879985,-500.0,0.00049041,120]
[356625326,1742845879995,-500.0,0.00049041,120]
[356625327,1742845880005,-500.0,0.00049041,120]
[356625328,1742845880014,-657.12,0.00049041,120]
[356625329,1742845880024,-500.0,0.00049041,120]
[356625330,1742845880034,-500.0,0.00049041,120]
[356625331,1742845880044,-500.22,0.00049041,120]
[356625332,1742845880054,-500.0,0.00049041,120]
[356625333,1742845880063,-500.0,0.00049041,120]
[356625334,1742845880073,-500.0,0.00049041,120]
[356625335,1742845880083,-500.0,0.00049041,120]
[356625336,1742845880092,-500.0,0.00049041,120]
[356625337,1742845880102,-500.0,0.00049041,120]
[356625338,1742845880112,-500.0,0.00049041,120]
[356625339,1742845880121,-1853.82,0.00049041,120]
[356625340,1742845880131,-1056.54,0.00049041,120]
[356625341,1742845880141,-500.0,0.00049041,120]
[356625342,1742845880150,-500.0,0.00049041,120]
[356625343,1742845880160,-516.61088525,0.00049041,120]
[356625344,1742845880169,-7241.82,0.00049041,2]
[356625345,1742845880179,-150.0,0.00049046,7]
[356625346,1742845880189,-150.0,0.00049072,7]
[356625347,1742845880198,-1000.0,0.00049091,14]
[356625348,1742845880207,-150.0,0.00049093,7]
[356625349,1742845880216,-150.0,0.00049129,7]
[356625350,1742845880226,-150.0,0.00049194,7]
[356625351,1742845880236,-152.0,0.00049241,12]
[356625352,1742845880245,-1000.0,0.0004925,14]
[356625353,1742845880255,-150.0,0.00049264,7]
[356625354,1742845880264,-150.0,0.00049302,7]
[356625355,1742845880273,-782.66,0.00049315,2]
[356625356,1742845880283,-830.17,0.00049315,7]
[356625357,1742845880293,-507.56019002,0.00049315,120]
[356625358,1742845880302,-611.59,0.00049315,120]
[356625359,1742845880312,-2989.75,0.00049315,120]
[356625360,1742845880322,-913.92,0.00049315,120]
[356625361,1742845880332,-656.99,0.00049315,7]
[356625362,1742845880342,-527.42,0.00049315,120]
[356625363,1742845880352,-500.0,0.00049315,100]
[356625364,1742845880362,-500.0,0.00049315,120]
[356625365,1742845880373,-500.0,0.00049315,120]
[356625366,1742845880382,-1015.23,0.00049315,120]
[356625367,1742845880392,-500.0,0.00049315,120]
[356625368,1742845880402,-4628.36,0.00049315,120]
[356625369,1742845880412,-500.0,0.00049315,120]
[356625370,1742845880421,-298.99372894,0.00049315,120]
[356625371,1742845880431,-500.0,0.00049315,120]
[356625372,1742845880442,-508.8814872,0.00049315,120]
[356625373,1742845880451,-500.0,0.00049315,120]
[356625374,1742845880461,-657.12,0.00049315,120]
[356625375,1742845880471,-500.0,0.00049315,120]
[356625376,1742845880480,-500.0,0.00049315,120]
[356625377,1742845880490,-500.22,0.00049315,120]
[356625378,1742845880500,-500.0,0.00049315,120]
[356625379,1742845880509,-500.0,0.00049315,120]
[356625380,1742845880519,-500.0,0.00049315,120]
[356625381,1742845880529,-152.24942843,0.00049315,120]
[356625382,1742845880539,-500.0,0.00049315,120]
[356625383,1742845880554,-500.0,0.00049315,120]
[356625384,1742845880563,-500.0,0.00049315,120]
[356625385,1742845880573,-1853.82,0.00049315,120]
[356625386,1742845880583,-1056.54,0.00049315,120]
[356625387,1742845880592,-500.0,0.00049315,120]
[356625388,1742845880602,-500.0,0.00049315,120]
[356625389,1742845880612,-7241.82,0.00049315,2]
[356625390,1742845880621,-159.68,0.00049315,30]
[356625391,1742845880631,-157.75,0.00049342,120]
[356625392,1742845880642,-150.0,0.00049359,7]
[356625393,1742845880651,-500.0,0.000494,120]
[356625394,1742845880660,-1000.0,0.00049407,30]
[356625395,1742845880670,-150.0,0.00049484,7]
[356625396,1742845880679,-244.57684444,0.000495,25]
[356625397,1742845880688,-598.68,0.00049555,2]
[356625398,1742845880697,-207.24278642,0.00049567,11]
[356625399,1742845880707,-782.66,0.00049589,2]
[356625400,1742845880717,-830.17,0.00049589,7]
[356625401,1742845880726,-150.0,0.00049589,7]
[356625402,1742845880735,-611.59,0.00049589,120]
[356625403,1742845880744,-2989.75,0.00049589,120]
[356625404,1742845880754,-913.92,0.00049589,120]
[356625405,1742845880763,-656.99,0.00049589,7]
[356625406,1742845880773,-527.42,0.00049589,120]
[356625407,1742845880782,-500.0,0.00049589,100]
[356625408,1742845880791,-500.0,0.00049589,120]
[356625409,1742845880801,-500.0,0.00049589,120]
[356625410,1742845880810,-1015.23,0.00049589,120]
[356625411,1742845880819,-500.0,0.00049589,120]
[356625412,1742845880828,-4628.36,0.00049589,120]
[356625413,1742845880837,-500.0,0.00049589,120]
[356625414,1742845880847,-500.0,0.00049589,120]
[356625415,1742845880856,-500.0,0.00049589,120]
[356625416,1742845880865,-657.12,0.00049589,120]
[356625417,1742845880874,-500.0,0.00049589,120]
[356625418,1742845880884,-500.0,0.00049589,120]
[356625419,1742845880894,-500.22,0.00049589,120]
[356625420,1742845880903,-500.0,0.00049589,120]
[356625421,1742845880912,-500.0,0.00049589,120]
[356625422,1742845880921,-500.0,0.00049589,120]
[356625423,1742845880931,-500.0,0.00049589,120]
[356625424,1742845880940,-500.0,0.00049589,120]
[356625425,1742845880949,-500.0,0.00049589,120]
[356625426,1742845880959,-1853.82,0.00049589,120]
[356625427,1742845880968,-1056.54,0.00049589,120]
[356625428,1742845880978,-500.0,0.00049589,120]
[356625429,1742845880988,-500.0,0.00049589,120]
[356625430,1742845880998,-7241.82,0.00049589,2]
[356625431,1742845881008,-150.0,0.00049598,7]
[356625432,1742845881019,-1000.0,0.00049601,30]
[356625433,1742845881030,-150.0,0.00049631,7]
[356625434,1742845881040,-1000.0,0.00049669,30]
[356625435,1742845881050,-1700.69040215,0.00049684,120]
[356625436,1742845881061,-36420.28,0.000497,40]
[356625437,1742845881071,-150.0,0.0004972,7]
[356625438,1742845881080,-150.0,0.00049739,7]
[356625439,1742845881090,-150.0,0.00049743,7]
[356625440,1742845881099,-150.0,0.00049813,30]
[356625441,1742845881108,-150.0,0.00049826,7]
[356625442,1742845881117,-1000.0,0.00049834,30]
[356625443,1742845881125,-782.66,0.00049863,2]
[356625444,1742845881135,-830.17,0.00049863,7]
[356625445,1742845881145,-611.59,0.00049863,120]
[356625446,1742845881155,-2989.75,0.00049863,120]
[356625447,1742845881163,-913.92,0.00049863,120]
[356625448,1742845881173,-656.99,0.00049863,7]
[356625449,1742845881181,-527.42,0.00049863,120]
[356625450,1742845881190,-500.0,0.00049863,100]
[356625451,1742845881199,-500.0,0.00049863,120]
[356625452,1742845881209,-190.52363982,0.00049863,120]
[356625453,1742845881218,-1015.23,0.00049863,120]
[356625454,1742845881228,-500.0,0.00049863,120]
[356625455,1742845881237,-4628.36,0.00049863,120]
[356625456,1742845881248,-500.0,0.00049863,120]
[356625457,1742845881257,-500.0,0.00049863,120]
[356625458,1742845881266,-323.82269213,0.00049863,120]
[356625459,1742845881275,-657.12,0.00049863,120]
[356625460,1742845881284,-500.0,0.00049863,120]
[356625461,1742845881294,-500.0,0.00049863,120]
[356625462,1742845881303,-500.22,0.00049863,120]
[356625463,1742845881312,-275.25,0.00049863,120]
[356625464,1742845881321,-334.18801417,0.00049863,120]
[356625465,1742845881330,-362.56260498,0.00049863,120]
[356625466,1742845881340,-500.0,0.00049863,120]
[356625467,1742845881349,-500.0,0.00049863,120]
[356625468,1742845881358,-527.86407016,0.00049863,120]
[356625469,1742845881462,-1853.82,0.00049863,120]
[356625470,1742845881472,-1056.54,0.00049863,120]
[356625471,1742845881481,-349.98999403,0.00049863,120]
[356625472,1742845881490,-500.0,0.00049863,120]
[356625473,1742845881499,-7241.82,0.00049863,2]
[356625474,1742845881508,-150.0,0.00049866,30]
[356625475,1742845881517,-150.0,0.00049876,30]
[356625476,1742845881526,-198.31086863,0.000499,120]
[356625477,1742845881535,-150.0,0.00049948,7]
[356625478,1742845881546,-1000.0,0.00049951,30]
[356625479,1742845881556,-150.0,0.00049958,7]
[356625480,1742845881565,-1000.0,0.00049964,30]
[356625481,1742845881574,-150.0,0.00049979,7]
[356625482,1742845881583,-150.0,0.00049998,7]
[356625483,1742845881593,-500.0,0.00049999,120]
[356625484,1742845881602,-500.0,0.00049999,120]
[356625485,1742845881611,-500.0,0.00049999,120]
[356625486,1742845881620,-500.0,0.00049999,120]
[356625487,1742845881629,-500.0,0.00049999,120]
[356625488,1742845881639,-500.0,0.00049999,120]
[356625489,1742845881648,-500.0,0.00049999,120]
[356625490,1742845881657,-500.0,0.00049999,120]
[356625491,1742845881666,-500.0,0.00049999,120]
[356625492,1742845881675,-500.0,0.00049999,120]
[356625493,1742845881684,-500.0,0.00049999,120]
[356625494,1742845881693,-500.0,0.00049999,120]
[356625495,1742845881702,-500.0,0.00049999,120]
[356625496,1742845881715,-500.0,0.00049999,120]
[356625497,1742845881724,-500.0,0.00049999,120]
[356625498,1742845881733,-500.0,0.00049999,120]
[356625499,1742845881743,-500.0,0.00049999,120]
[356625500,1742845881752,-500.0,0.00049999,120]
[356625501,1742845881762,-500.0,0.00049999,120]
[356625502,1742845881772,-500.0,0.00049999,120]
[356625503,1742845881781,-500.0,0.00049999,120]
[356625504,1742845881791,-354.9772153,0.00049999,120]
[356625505,1742845881800,-500.0,0.00049999,120]
[356625506,1742845881810,-500.0,0.00049999,120]
[356625507,1742845881819,-500.0,0.00049999,120]
[356625508,1742845881829,-500.0,0.00049999,120]
[356625509,1742845881839,-500.0,0.00049999,120]
[356625510,1742845881848,-500.0,0.00049999,120]
[356625511,1742845881856,-500.0,0.00049999,120]
[356625512,1742845881865,-500.0,0.00049999,120]
[356625513,1742845881874,-500.0,0.00049999,120]
[356625514,1742845881883,-500.0,0.00049999,120]
[356625515,1742845881892,-500.0,0.00049999,120]
[356625516,1742845881901,-500.0,0.00049999,120]
[356625517,1742845881909,-500.0,0.00049999,120]
[356625518,1742845881918,-500.0,0.00049999,120]
[356625519,1742845881928,-500.0,0.00049999,120]
[356625520,1742845881936,-500.0,0.00049999,120]
[356625521,1742845881946,-500.0,0.00049999,120]
[356625522,1742845881954,-500.0,0.00049999,120]
[356625523,1742845881964,-500.0,0.00049999,120]
[356625524,1742845881973,-500.0,0.00049999,120]
[356625525,1742845881983,-500.0,0.00049999,120]
[356625526,1742845881993,-500.0,0.00049999,120]
[356625527,1742845882002,-500.0,0.00049999,120]
[356625528,1742845882012,-351.49316459,0.00049999,120]
[356625529,1742845882022,-500.0,0.00049999,120]
[356625530,1742845882031,-500.0,0.00049999,120]
[356625531,1742845882041,-500.0,0.00049999,120]
[356625532,1742845882051,-500.0,0.00049999,120]
[356625533,1742845882060,-500.0,0.00049999,120]
[356625534,1742845882069,-500.0,0.00049999,120]
[356625535,1742845882079,-500.0,0.00049999,120]
[356625536,1742845882088,-500.0,0.00049999,120]
[356625537,1742845882098,-500.0,0.00049999,120]
[356625538,1742845882107,-500.0,0.00049999,120]
[356625539,1742845882117,-500.0,0.00049999,120]
[356625540,1742845882127,-500.0,0.00049999,120]
[356625541,1742845882136,-500.0,0.00049999,120]
[356625542,1742845882146,-500.0,0.00049999,120]
[356625543,1742845882156,-305.0,0.00049999,120]
[356625544,1742845882166,-553.67120654,0.0005,120]
[356625545,1742845882175,-949.68,0.0005,5]